[Event "Early-Titled-Tuesday-Blitz-April-16-2024"]
[Site "Chess.com"]
[Date "2024.04.16"]
[Round "1"]
[White "gurelediz"]
[Black "dosto07"]
[Result "1-0"]
[WhiteElo "2945"]
[BlackElo "2515"]
[TimeControl "180+1"]
[EndTime "8:05:33 PDT"]
[Termination "gurelediz won by resignation"]

1. e4 {[%clk 0:03:00.9]} 1... e5 {[%clk 0:02:59.4]} 2. Nf3 {[%clk 0:03:01]} 2...
Nc6 {[%clk 0:02:59.2]} 3. Nc3 {[%clk 0:03:01.2]} 3... Nf6 {[%clk 0:02:58.7]} 4.
Bb5 {[%clk 0:03:01.6]} 4... Bb4 {[%clk 0:02:57.8]} 5. O-O {[%clk 0:03:01]} 5...
O-O {[%clk 0:02:57.2]} 6. d3 {[%clk 0:02:59.8]} 6... Bxc3 {[%clk 0:02:57.3]} 7.
bxc3 {[%clk 0:03:00.7]} 7... d6 {[%clk 0:02:57.6]} 8. Bxc6 {[%clk 0:02:58.7]}
8... bxc6 {[%clk 0:02:57.3]} 9. Bg5 {[%clk 0:02:59.6]} 9... h6 {[%clk
0:02:56.7]} 10. Bh4 {[%clk 0:03:00.1]} 10... g5 {[%clk 0:02:54.7]} 11. Bg3
{[%clk 0:03:00.4]} 11... Bg4 {[%clk 0:02:48.2]} 12. Re1 {[%clk 0:02:50.7]} 12...
Re8 {[%clk 0:02:47.3]} 13. Rb1 {[%clk 0:02:49.3]} 13... Rb8 {[%clk 0:02:45.2]}
14. Rxb8 {[%clk 0:02:49.1]} 14... Qxb8 {[%clk 0:02:45.2]} 15. h3 {[%clk
0:02:49.8]} 15... Bh5 {[%clk 0:02:43.9]} 16. d4 {[%clk 0:02:42.1]} 16... exd4
{[%clk 0:02:12.1]} 17. Qxd4 {[%clk 0:02:43]} 17... Nd7 {[%clk 0:02:12.1]} 18.
Nd2 {[%clk 0:02:20.3]} 18... Bg6 {[%clk 0:01:57.6]} 19. Rb1 {[%clk 0:01:58.1]}
19... Qa8 {[%clk 0:01:47.7]} 20. f3 {[%clk 0:01:42.9]} 20... c5 {[%clk
0:01:46.8]} 21. Qf2 {[%clk 0:01:39.3]} 21... Qc6 {[%clk 0:01:44.8]} 22. h4
{[%clk 0:01:39.6]} 22... f6 {[%clk 0:01:42.4]} 23. Nc4 {[%clk 0:01:36]} 23...
Qa6 {[%clk 0:01:39.2]} 24. Ne3 {[%clk 0:01:34.3]} 24... Qxa2 {[%clk 0:01:37.8]}
25. Rb7 {[%clk 0:01:34.4]} 25... Qa5 {[%clk 0:01:27.8]} 26. Nd5 {[%clk
0:01:32.1]} 26... Nb6 {[%clk 0:01:13.9]} 27. Nxf6+ {[%clk 0:01:31.4]} 27... Kf7
{[%clk 0:01:11.5]} 28. Nxe8 {[%clk 0:01:31.3]} 28... Kxe8 {[%clk 0:01:11.6]} 29.
Rxc7 {[%clk 0:01:28]} 29... Qxc3 {[%clk 0:01:01.6]} 30. Bxd6 {[%clk 0:01:27.4]}
30... Nc4 {[%clk 0:00:49]} 31. Bxc5 {[%clk 0:01:16.4]} 31... Qa1+ {[%clk
0:00:45.9]} 32. Kh2 {[%clk 0:01:16.5]} 32... Qe5+ {[%clk 0:00:45.7]} 33. Qg3
{[%clk 0:01:17.2]} 33... gxh4 {[%clk 0:00:40]} 34. Qxe5+ {[%clk 0:01:16.8]}
34... Nxe5 {[%clk 0:00:39.4]} 35. Re7+ {[%clk 0:01:17.3]} 1-0

[Event "Early-Titled-Tuesday-Blitz-April-16-2024"]
[Site "Chess.com"]
[Date "2024.04.16"]
[Round "1"]
[White "KnightDuta"]
[Black "NikFil2013"]
[Result "1-0"]
[WhiteElo "2753"]
[BlackElo "2431"]
[TimeControl "180+1"]
[EndTime "8:05:36 PDT"]
[Termination "KnightDuta won by checkmate"]

1. e4 {[%clk 0:03:00.9]} 1... c5 {[%clk 0:02:59.2]} 2. Nf3 {[%clk 0:03:00.9]}
2... d6 {[%clk 0:02:59.9]} 3. d4 {[%clk 0:03:01.2]} 3... cxd4 {[%clk 0:03:00.8]}
4. Nxd4 {[%clk 0:03:02.1]} 4... Nf6 {[%clk 0:03:01.5]} 5. Nc3 {[%clk 0:03:02.6]}
5... a6 {[%clk 0:03:02.1]} 6. Bg5 {[%clk 0:03:03]} 6... e6 {[%clk 0:03:01.6]} 7.
f4 {[%clk 0:03:03.3]} 7... Be7 {[%clk 0:03:00.4]} 8. Qf3 {[%clk 0:03:03]} 8...
O-O {[%clk 0:02:58.6]} 9. O-O-O {[%clk 0:03:03]} 9... Qc7 {[%clk 0:02:58.4]} 10.
g4 {[%clk 0:03:02.6]} 10... Nbd7 {[%clk 0:02:58.4]} 11. Bg2 {[%clk 0:02:33.9]}
11... Rb8 {[%clk 0:02:44.8]} 12. h4 {[%clk 0:02:24.9]} 12... b5 {[%clk
0:02:44.3]} 13. h5 {[%clk 0:01:56.7]} 13... b4 {[%clk 0:02:42]} 14. Nce2 {[%clk
0:01:50.2]} 14... Bb7 {[%clk 0:02:41.9]} 15. Ng3 {[%clk 0:01:46.8]} 15... Qa5
{[%clk 0:02:22]} 16. Kb1 {[%clk 0:01:39.8]} 16... Rfe8 {[%clk 0:02:03.3]} 17.
Bxf6 {[%clk 0:01:29.7]} 17... Bxf6 {[%clk 0:01:54.5]} 18. g5 {[%clk 0:01:30.1]}
18... Bxd4 {[%clk 0:01:47.2]} 19. Rxd4 {[%clk 0:01:31]} 19... Qc5 {[%clk
0:01:32.2]} 20. Qd3 {[%clk 0:01:19.8]} 20... e5 {[%clk 0:01:21.4]} 21. Rxd6
{[%clk 0:00:43.1]} 21... exf4 {[%clk 0:01:19.7]} 22. Rxd7 {[%clk 0:00:43.3]}
22... fxg3 {[%clk 0:01:19.7]} 23. g6 {[%clk 0:00:43.2]} 23... fxg6 {[%clk
0:01:00.1]} 24. Qb3+ {[%clk 0:00:42.3]} 24... Kh8 {[%clk 0:00:54.9]} 25. hxg6
{[%clk 0:00:42.5]} 25... h6 {[%clk 0:00:55]} 26. Rxh6+ {[%clk 0:00:42.1]} 26...
gxh6 {[%clk 0:00:55.1]} 27. Rh7# {[%clk 0:00:43]} 1-0

[Event "Early-Titled-Tuesday-Blitz-April-16-2024"]
[Site "Chess.com"]
[Date "2024.04.16"]
[Round "1"]
[White "YegoryoCh"]
[Black "IshviAggarwal"]
[Result "1-0"]
[WhiteElo "2572"]
[BlackElo "2138"]
[TimeControl "180+1"]
[EndTime "8:05:36 PDT"]
[Termination "YegoryoCh won by resignation"]

1. e4 {[%clk 0:02:35.2]} 1... e6 {[%clk 0:02:56.8]} 2. d4 {[%clk 0:02:34.5]}
2... d5 {[%clk 0:02:56.7]} 3. e5 {[%clk 0:02:34.7]} 3... c5 {[%clk 0:02:56.1]}
4. c3 {[%clk 0:02:34.8]} 4... Nc6 {[%clk 0:02:55.6]} 5. Nf3 {[%clk 0:02:34.9]}
5... Qb6 {[%clk 0:02:55.3]} 6. Bd3 {[%clk 0:02:35.1]} 6... Bd7 {[%clk
0:02:41.8]} 7. O-O {[%clk 0:02:34.3]} 7... cxd4 {[%clk 0:02:35.5]} 8. Re1 {[%clk
0:02:33.9]} 8... O-O-O {[%clk 0:02:28.9]} 9. Nbd2 {[%clk 0:02:29.7]} 9... dxc3
{[%clk 0:02:28.5]} 10. bxc3 {[%clk 0:02:30.6]} 10... Bc5 {[%clk 0:02:26.5]} 11.
Qe2 {[%clk 0:02:29.6]} 11... d4 {[%clk 0:02:19.2]} 12. Nc4 {[%clk 0:02:18.8]}
12... Qc7 {[%clk 0:02:16.7]} 13. cxd4 {[%clk 0:02:17.2]} 13... Nxd4 {[%clk
0:02:16.2]} 14. Nxd4 {[%clk 0:02:13.7]} 14... Bxd4 {[%clk 0:02:17.1]} 15. Nd6+
{[%clk 0:02:09.5]} 15... Kb8 {[%clk 0:02:16.5]} 16. Rb1 {[%clk 0:02:10.2]} 16...
Bc6 {[%clk 0:02:10.5]} 17. Be4 {[%clk 0:02:09.5]} 17... Bxe5 {[%clk 0:02:04.2]}
18. Bxc6 {[%clk 0:02:04]} 18... Bxh2+ {[%clk 0:01:46.1]} 19. Kh1 {[%clk
0:01:31.1]} 19... b6 {[%clk 0:01:21.5]} 20. Nb5 {[%clk 0:01:20.1]} 20... Qxc6
{[%clk 0:01:20.5]} 21. Kxh2 {[%clk 0:01:20.3]} 21... Nf6 {[%clk 0:00:47.6]} 22.
Bf4+ {[%clk 0:01:17.3]} 22... Kb7 {[%clk 0:00:47.4]} 23. Rec1 {[%clk 0:01:16.7]}
1-0

[Event "Early-Titled-Tuesday-Blitz-April-16-2024"]
[Site "Chess.com"]
[Date "2024.04.16"]
[Round "1"]
[White "Eloist"]
[Black "chessfatbear"]
[Result "0-1"]
[WhiteElo "2491"]
[BlackElo "2862"]
[TimeControl "180+1"]
[EndTime "8:05:37 PDT"]
[Termination "chessfatbear won on time"]

1. e4 {[%clk 0:03:00.9]} 1... c5 {[%clk 0:02:53.4]} 2. Nf3 {[%clk 0:03:00.9]}
2... d6 {[%clk 0:02:49.9]} 3. Bb5+ {[%clk 0:03:00.6]} 3... Bd7 {[%clk
0:02:39.2]} 4. Bxd7+ {[%clk 0:03:00.5]} 4... Qxd7 {[%clk 0:02:39]} 5. c4 {[%clk
0:03:00.6]} 5... Nf6 {[%clk 0:02:38.6]} 6. Nc3 {[%clk 0:03:00.6]} 6... g6 {[%clk
0:02:38.8]} 7. d4 {[%clk 0:03:00.4]} 7... cxd4 {[%clk 0:02:39.1]} 8. Nxd4 {[%clk
0:03:01.3]} 8... Bg7 {[%clk 0:02:39.4]} 9. f3 {[%clk 0:03:01.3]} 9... O-O {[%clk
0:02:38.5]} 10. Be3 {[%clk 0:03:01.3]} 10... Nc6 {[%clk 0:02:37.6]} 11. O-O
{[%clk 0:03:00.3]} 11... Rfc8 {[%clk 0:02:37.7]} 12. b3 {[%clk 0:02:57.1]} 12...
Qd8 {[%clk 0:02:37.3]} 13. Nxc6 {[%clk 0:02:46.6]} 13... bxc6 {[%clk 0:02:30.5]}
14. Qd2 {[%clk 0:02:39]} 14... Nd7 {[%clk 0:02:28.4]} 15. Rac1 {[%clk
0:02:26.4]} 15... Qa5 {[%clk 0:02:28.4]} 16. Na4 {[%clk 0:02:15.1]} 16... Qxd2
{[%clk 0:02:27]} 17. Bxd2 {[%clk 0:02:15.1]} 17... Bd4+ {[%clk 0:02:24.7]} 18.
Kh1 {[%clk 0:02:14.5]} 18... Nb6 {[%clk 0:02:24.7]} 19. Nc3 {[%clk 0:02:01]}
19... a5 {[%clk 0:02:24.7]} 20. Ne2 {[%clk 0:01:57.3]} 20... Bc5 {[%clk
0:02:16.6]} 21. f4 {[%clk 0:01:43.2]} 21... Nd7 {[%clk 0:02:16.7]} 22. Bc3
{[%clk 0:01:24.6]} 22... Rcb8 {[%clk 0:02:11.9]} 23. Rb1 {[%clk 0:01:10.6]}
23... Nf6 {[%clk 0:02:12]} 24. Bxf6 {[%clk 0:00:51.1]} 24... exf6 {[%clk
0:02:12.1]} 25. Nc3 {[%clk 0:00:38.5]} 25... Re8 {[%clk 0:02:06.6]} 26. Rfe1
{[%clk 0:00:34.3]} 26... Bb4 {[%clk 0:02:06.4]} 27. Rbc1 {[%clk 0:00:29.3]}
27... a4 {[%clk 0:01:57.6]} 28. Red1 {[%clk 0:00:14.5]} 28... axb3 {[%clk
0:01:56.4]} 29. axb3 {[%clk 0:00:15.4]} 29... Ra3 {[%clk 0:01:56.4]} 30. Kg1
{[%clk 0:00:06.4]} 30... Rxb3 {[%clk 0:01:55.7]} 31. Na2 {[%clk 0:00:04.6]}
31... Bc5+ {[%clk 0:01:55.4]} 32. Kh1 {[%clk 0:00:02.8]} 32... Rxe4 {[%clk
0:01:55.3]} 0-1

[Event "Early-Titled-Tuesday-Blitz-April-16-2024"]
[Site "Chess.com"]
[Date "2024.04.16"]
[Round "1"]
[White "PolandHussars"]
[Black "Burgsvik"]
[Result "1-0"]
[WhiteElo "2600"]
[BlackElo "2239"]
[TimeControl "180+1"]
[EndTime "8:05:37 PDT"]
[Termination "PolandHussars won by checkmate"]

1. e4 {[%clk 0:03:00.9]} 1... c5 {[%clk 0:02:59.9]} 2. Ne2 {[%clk 0:03:00.6]}
2... Nc6 {[%clk 0:03:00.4]} 3. g3 {[%clk 0:03:01]} 3... d6 {[%clk 0:03:00.3]} 4.
Bg2 {[%clk 0:03:01.6]} 4... Bd7 {[%clk 0:02:59.8]} 5. c3 {[%clk 0:03:02]} 5...
Qc8 {[%clk 0:02:59.8]} 6. h3 {[%clk 0:03:01.1]} 6... g6 {[%clk 0:02:59.1]} 7. d4
{[%clk 0:03:01.2]} 7... Bg7 {[%clk 0:02:58.5]} 8. Be3 {[%clk 0:03:00.5]} 8... h5
{[%clk 0:02:55.1]} 9. dxc5 {[%clk 0:02:59.7]} 9... dxc5 {[%clk 0:02:54.7]} 10.
Bxc5 {[%clk 0:02:59.3]} 10... h4 {[%clk 0:02:53.3]} 11. g4 {[%clk 0:02:59]}
11... b6 {[%clk 0:02:40]} 12. Be3 {[%clk 0:02:58.5]} 12... Ne5 {[%clk
0:02:37.7]} 13. Na3 {[%clk 0:02:51]} 13... Nf6 {[%clk 0:02:30.2]} 14. f4 {[%clk
0:02:42]} 14... Nexg4 {[%clk 0:02:29.1]} 15. hxg4 {[%clk 0:02:42.1]} 15... Nxg4
{[%clk 0:02:28.7]} 16. Bd4 {[%clk 0:02:40.7]} 16... e5 {[%clk 0:02:28.7]} 17.
fxe5 {[%clk 0:02:40.4]} 17... Nxe5 {[%clk 0:02:28.6]} 18. Nf4 {[%clk 0:02:33.4]}
18... g5 {[%clk 0:02:10.9]} 19. Nd5 {[%clk 0:02:28.8]} 19... Bg4 {[%clk
0:01:58.7]} 20. Qa4+ {[%clk 0:02:24.3]} 20... Bd7 {[%clk 0:01:58.5]} 21. Nb5
{[%clk 0:02:06.7]} 21... a6 {[%clk 0:00:19]} 22. Nd6+ {[%clk 0:02:06.4]} 22...
Kf8 {[%clk 0:00:18.7]} 23. Qa3 {[%clk 0:02:06.4]} 23... Qb8 {[%clk 0:00:14.6]}
24. Nf5+ {[%clk 0:02:03.8]} 24... Kg8 {[%clk 0:00:13.4]} 25. Nxg7 {[%clk
0:02:00.3]} 25... Kxg7 {[%clk 0:00:14.3]} 26. Qe7 {[%clk 0:01:55.3]} 26... Re8
{[%clk 0:00:13.3]} 27. Qxd7 {[%clk 0:01:51.4]} 27... Kg6 {[%clk 0:00:07.8]} 28.
Qf5+ {[%clk 0:01:50.7]} 28... Kh5 {[%clk 0:00:07.8]} 29. O-O-O {[%clk
0:01:47.6]} 29... b5 {[%clk 0:00:05.2]} 30. Qh7+ {[%clk 0:01:47.6]} 30... Kg4
{[%clk 0:00:04.7]} 31. Bh3+ {[%clk 0:01:47.1]} 31... Kg3 {[%clk 0:00:04.9]} 32.
Rdg1+ {[%clk 0:01:46.7]} 32... Kf3 {[%clk 0:00:03.3]} 33. Qf5+ {[%clk
0:01:46.1]} 33... Ke2 {[%clk 0:00:03.5]} 34. Bf1+ {[%clk 0:01:46.3]} 34... Ke1
{[%clk 0:00:03.4]} 35. Bf2# {[%clk 0:01:45.7]} 1-0

[Event "Early-Titled-Tuesday-Blitz-April-16-2024"]
[Site "Chess.com"]
[Date "2024.04.16"]
[Round "1"]
[White "DanylaBagrov"]
[Black "Kirill_Klukin"]
[Result "0-1"]
[WhiteElo "2473"]
[BlackElo "2832"]
[TimeControl "180+1"]
[EndTime "8:05:39 PDT"]
[Termination "Kirill_Klukin won by checkmate"]

1. d4 {[%clk 0:03:00.9]} 1... Nf6 {[%clk 0:02:56.1]} 2. c4 {[%clk 0:03:01.2]}
2... Nc6 {[%clk 0:02:56.3]} 3. d5 {[%clk 0:02:59.4]} 3... Ne5 {[%clk 0:02:55.7]}
4. Nc3 {[%clk 0:02:55.9]} 4... e6 {[%clk 0:02:54.6]} 5. e4 {[%clk 0:02:54.4]}
5... Bb4 {[%clk 0:02:53.7]} 6. Qc2 {[%clk 0:02:45.9]} 6... exd5 {[%clk
0:02:50.8]} 7. cxd5 {[%clk 0:02:46.8]} 7... O-O {[%clk 0:02:50.7]} 8. Bf4 {[%clk
0:02:42.1]} 8... Ng6 {[%clk 0:02:47.5]} 9. Bg5 {[%clk 0:02:42.4]} 9... h6 {[%clk
0:02:45.8]} 10. Bxf6 {[%clk 0:02:39.1]} 10... Qxf6 {[%clk 0:02:46.7]} 11. O-O-O
{[%clk 0:02:35.4]} 11... c6 {[%clk 0:02:28.9]} 12. Nf3 {[%clk 0:02:31.5]} 12...
d6 {[%clk 0:02:27]} 13. Be2 {[%clk 0:02:23.3]} 13... Bg4 {[%clk 0:02:26.3]} 14.
Kb1 {[%clk 0:02:23.2]} 14... Rac8 {[%clk 0:02:26.2]} 15. dxc6 {[%clk 0:02:18.5]}
15... bxc6 {[%clk 0:02:01.7]} 16. Nd4 {[%clk 0:02:08.3]} 16... Bd7 {[%clk
0:02:00]} 17. Ba6 {[%clk 0:02:01.1]} 17... Rb8 {[%clk 0:01:58.9]} 18. Rhf1
{[%clk 0:01:54.6]} 18... Rb6 {[%clk 0:01:57]} 19. Bc4 {[%clk 0:01:54.1]} 19...
Ne5 {[%clk 0:01:47]} 20. Bb3 {[%clk 0:01:51.9]} 20... Bxc3 {[%clk 0:01:23.2]}
21. Qxc3 {[%clk 0:01:51.7]} 21... c5 {[%clk 0:01:23.8]} 22. Nf3 {[%clk
0:01:44.4]} 22... Bg4 {[%clk 0:00:50.8]} 23. Rd5 {[%clk 0:01:18.4]} 23... Bxf3
{[%clk 0:00:48.5]} 24. gxf3 {[%clk 0:01:16.3]} 24... Rfb8 {[%clk 0:00:47.8]} 25.
Rfd1 {[%clk 0:00:57.4]} 25... c4 {[%clk 0:00:47.1]} 26. Bc2 {[%clk 0:00:48.3]}
26... Rxb2+ {[%clk 0:00:47.2]} 27. Qxb2 {[%clk 0:00:49.2]} 27... Rxb2+ {[%clk
0:00:47.3]} 28. Kxb2 {[%clk 0:00:50.1]} 28... Nd3+ {[%clk 0:00:47.8]} 29. Ka3
{[%clk 0:00:48.1]} 29... Qb2+ {[%clk 0:00:48.7]} 30. Ka4 {[%clk 0:00:47.6]}
30... Qb4# {[%clk 0:00:49.6]} 0-1

[Event "Early-Titled-Tuesday-Blitz-April-16-2024"]
[Site "Chess.com"]
[Date "2024.04.16"]
[Round "1"]
[White "FREDERICKtheMATE"]
[Black "WiktoriaPOL"]
[Result "1-0"]
[WhiteElo "2679"]
[BlackElo "2382"]
[TimeControl "180+1"]
[EndTime "8:05:41 PDT"]
[Termination "FREDERICKtheMATE won by resignation"]

1. d4 {[%clk 0:03:00.9]} 1... Nf6 {[%clk 0:02:59.6]} 2. c4 {[%clk 0:03:00.3]}
2... g6 {[%clk 0:03:00]} 3. Nc3 {[%clk 0:02:59.9]} 3... Bg7 {[%clk 0:03:00]} 4.
e4 {[%clk 0:03:00.5]} 4... d6 {[%clk 0:03:00.1]} 5. Nf3 {[%clk 0:03:01]} 5...
O-O {[%clk 0:02:59.2]} 6. Be2 {[%clk 0:03:01.5]} 6... e5 {[%clk 0:02:59.3]} 7.
Be3 {[%clk 0:03:01.9]} 7... Nc6 {[%clk 0:02:58.3]} 8. d5 {[%clk 0:03:00.8]} 8...
Ne7 {[%clk 0:02:58.5]} 9. Nd2 {[%clk 0:03:00.3]} 9... Ne8 {[%clk 0:02:47.5]} 10.
f3 {[%clk 0:03:00.1]} 10... f5 {[%clk 0:02:47.4]} 11. Qc2 {[%clk 0:02:58.7]}
11... f4 {[%clk 0:02:45.4]} 12. Bf2 {[%clk 0:02:58.5]} 12... g5 {[%clk
0:02:45.3]} 13. h3 {[%clk 0:02:58.3]} 13... Ng6 {[%clk 0:02:43.8]} 14. b4 {[%clk
0:02:57.2]} 14... Nf6 {[%clk 0:02:41.8]} 15. c5 {[%clk 0:02:55.6]} 15... c6
{[%clk 0:02:27.4]} 16. dxc6 {[%clk 0:02:53.5]} 16... bxc6 {[%clk 0:02:25.4]} 17.
cxd6 {[%clk 0:02:53.5]} 17... Ne8 {[%clk 0:02:14.7]} 18. Nc4 {[%clk 0:02:51.9]}
18... Be6 {[%clk 0:02:05.3]} 19. Bc5 {[%clk 0:02:50.2]} 19... Rf7 {[%clk
0:01:53]} 20. O-O-O {[%clk 0:02:45.9]} 20... Rd7 {[%clk 0:01:51.6]} 21. Rd2
{[%clk 0:02:31.2]} 21... Bf8 {[%clk 0:01:46.6]} 22. Rhd1 {[%clk 0:02:30.6]}
22... Kg7 {[%clk 0:01:43.8]} 23. Na4 {[%clk 0:02:10.3]} 23... Qf6 {[%clk
0:01:07.2]} 24. Nab2 {[%clk 0:02:03.6]} 24... Nh8 {[%clk 0:01:03.2]} 25. Nxe5
{[%clk 0:02:00.3]} 25... Rxd6 {[%clk 0:00:48.8]} 26. Bxd6 {[%clk 0:01:40.9]}
26... Bxd6 {[%clk 0:00:47.5]} 27. Nxc6 {[%clk 0:01:40]} 27... Rc8 {[%clk
0:00:41.4]} 28. b5 {[%clk 0:01:36.2]} 28... Bb4 {[%clk 0:00:32.7]} 29. Rd4
{[%clk 0:01:29.4]} 29... Bxa2 {[%clk 0:00:16.7]} 30. Rxb4 {[%clk 0:01:26.5]} 1-0

[Event "Early-Titled-Tuesday-Blitz-April-16-2024"]
[Site "Chess.com"]
[Date "2024.04.16"]
[Round "1"]
[White "IsmaelAmadorGarcia"]
[Black "ChessRespected"]
[Result "0-1"]
[WhiteElo "2313"]
[BlackElo "2625"]
[TimeControl "180+1"]
[EndTime "8:05:43 PDT"]
[Termination "ChessRespected won by resignation"]

1. e4 {[%clk 0:03:00.9]} 1... e5 {[%clk 0:02:59.1]} 2. Nf3 {[%clk 0:03:00.6]}
2... Nc6 {[%clk 0:02:58.7]} 3. Bb5 {[%clk 0:02:57.8]} 3... a6 {[%clk 0:02:58.7]}
4. Ba4 {[%clk 0:02:58]} 4... b5 {[%clk 0:02:58.9]} 5. Bb3 {[%clk 0:02:57.7]}
5... Nf6 {[%clk 0:02:59.4]} 6. Ng5 {[%clk 0:02:57]} 6... d5 {[%clk 0:02:59.5]}
7. exd5 {[%clk 0:02:57]} 7... Nd4 {[%clk 0:02:59.7]} 8. Nc3 {[%clk 0:02:48.8]}
8... h6 {[%clk 0:02:58.2]} 9. Nge4 {[%clk 0:02:44.5]} 9... Nxe4 {[%clk
0:02:44.8]} 10. Nxe4 {[%clk 0:02:45]} 10... Nxb3 {[%clk 0:02:44.7]} 11. axb3
{[%clk 0:02:44.3]} 11... Qxd5 {[%clk 0:02:44.8]} 12. d3 {[%clk 0:02:33.2]} 12...
Bb7 {[%clk 0:02:39.2]} 13. O-O {[%clk 0:02:30.2]} 13... Be7 {[%clk 0:02:32]} 14.
Qg4 {[%clk 0:02:18]} 14... g6 {[%clk 0:02:23.7]} 15. Qg3 {[%clk 0:02:15]} 15...
Rg8 {[%clk 0:02:02.4]} 16. Bd2 {[%clk 0:02:09.9]} 16... f5 {[%clk 0:02:02.1]}
17. Nc3 {[%clk 0:02:09.6]} 17... Qc6 {[%clk 0:01:53.7]} 18. Rae1 {[%clk
0:01:44.3]} 18... O-O-O {[%clk 0:01:52.3]} 19. Rc1 {[%clk 0:01:23.7]} 19... Bd6
{[%clk 0:01:44.4]} 20. Qh3 {[%clk 0:01:19.5]} 20... Kb8 {[%clk 0:01:43.7]} 21.
f3 {[%clk 0:01:16.5]} 21... Rdf8 {[%clk 0:01:36.1]} 22. Kh1 {[%clk 0:01:13.6]}
22... g5 {[%clk 0:01:35.3]} 23. Qxh6 {[%clk 0:01:12.2]} 23... e4 {[%clk
0:01:32.6]} 24. h3 {[%clk 0:00:44.3]} 24... exf3 {[%clk 0:01:28.9]} 25. Rxf3
{[%clk 0:00:40.6]} 25... g4 {[%clk 0:01:28.9]} 26. hxg4 {[%clk 0:00:35.5]} 26...
Rh8 {[%clk 0:01:28.4]} 27. g5 {[%clk 0:00:24.1]} 27... Rxh6+ {[%clk 0:01:26.7]}
28. gxh6 {[%clk 0:00:24.8]} 28... Qd7 {[%clk 0:01:17.4]} 29. Rf2 {[%clk
0:00:18.7]} 29... Qf7 {[%clk 0:01:16.2]} 0-1

[Event "Early-Titled-Tuesday-Blitz-April-16-2024"]
[Site "Chess.com"]
[Date "2024.04.16"]
[Round "1"]
[White "Zavgorodniy_Sergiy"]
[Black "Heinza9"]
[Result "1/2-1/2"]
[WhiteElo "2615"]
[BlackElo "2325"]
[TimeControl "180+1"]
[EndTime "8:05:43 PDT"]
[Termination "Game drawn by repetition"]

1. d4 {[%clk 0:03:00.9]} 1... f5 {[%clk 0:02:59.3]} 2. c4 {[%clk 0:03:00.3]}
2... Nf6 {[%clk 0:02:58.7]} 3. Nf3 {[%clk 0:02:57.4]} 3... d6 {[%clk 0:02:57.7]}
4. g3 {[%clk 0:02:56.8]} 4... g6 {[%clk 0:02:57.9]} 5. Bg2 {[%clk 0:02:56.5]}
5... Bg7 {[%clk 0:02:58.3]} 6. O-O {[%clk 0:02:55.8]} 6... O-O {[%clk
0:02:58.3]} 7. Nc3 {[%clk 0:02:55]} 7... Qe8 {[%clk 0:02:58.6]} 8. d5 {[%clk
0:02:54.7]} 8... a5 {[%clk 0:02:58.9]} 9. Rb1 {[%clk 0:02:51.2]} 9... Na6 {[%clk
0:02:59]} 10. Nd4 {[%clk 0:02:50.1]} 10... Bd7 {[%clk 0:02:58.9]} 11. b3 {[%clk
0:02:48.3]} 11... c6 {[%clk 0:02:59]} 12. Bb2 {[%clk 0:02:46.3]} 12... Nc5
{[%clk 0:02:49.9]} 13. Ba1 {[%clk 0:02:44]} 13... Rd8 {[%clk 0:02:36.8]} 14. e3
{[%clk 0:02:22.4]} 14... e5 {[%clk 0:02:35.4]} 15. dxe6 {[%clk 0:02:21.8]} 15...
Nxe6 {[%clk 0:02:35.3]} 16. Nxe6 {[%clk 0:02:19.9]} 16... Bxe6 {[%clk
0:02:35.5]} 17. Qe2 {[%clk 0:02:17.9]} 17... d5 {[%clk 0:02:21]} 18. cxd5 {[%clk
0:02:17.2]} 18... Nxd5 {[%clk 0:02:21.3]} 19. Nxd5 {[%clk 0:02:16.8]} 19... Bxd5
{[%clk 0:02:21.5]} 20. Bxg7 {[%clk 0:02:15.9]} 20... Kxg7 {[%clk 0:02:21.9]} 21.
Bxd5 {[%clk 0:02:15]} 21... Rxd5 {[%clk 0:02:21.3]} 22. Rfd1 {[%clk 0:02:13.6]}
22... Qe4 {[%clk 0:02:07.6]} 23. h4 {[%clk 0:02:06.4]} 23... Rfd8 {[%clk
0:02:06]} 24. Rxd5 {[%clk 0:02:05.2]} 24... Qxd5 {[%clk 0:02:04.9]} 25. Qb2+
{[%clk 0:02:04.9]} 25... Kg8 {[%clk 0:02:03.7]} 26. Qf6 {[%clk 0:01:58.8]} 26...
Rd6 {[%clk 0:01:57.8]} 27. Qb2 {[%clk 0:01:57.7]} 27... h6 {[%clk 0:01:52.9]}
28. Rc1 {[%clk 0:01:54.6]} 28... g5 {[%clk 0:01:49.6]} 29. hxg5 {[%clk
0:01:54.2]} 29... hxg5 {[%clk 0:01:50]} 30. Qc3 {[%clk 0:01:39.2]} 30... b5
{[%clk 0:01:43.3]} 31. Qxa5 {[%clk 0:01:36.7]} 31... Rh6 {[%clk 0:01:42.8]} 32.
e4 {[%clk 0:01:27.4]} 32... fxe4 {[%clk 0:01:31]} 33. Qa8+ {[%clk 0:01:14.7]}
33... Kf7 {[%clk 0:01:25.9]} 34. Qb7+ {[%clk 0:01:14]} 34... Kg8 {[%clk
0:01:25.8]} 35. Qc8+ {[%clk 0:01:12.2]} 35... Kg7 {[%clk 0:01:22.2]} 36. Qc7+
{[%clk 0:01:11.8]} 36... Kg8 {[%clk 0:01:20.9]} 37. Qc8+ {[%clk 0:00:58.1]}
37... Kg7 {[%clk 0:01:19.3]} 38. Qc7+ {[%clk 0:00:41.6]} 38... Kg8 {[%clk
0:01:18.5]} 39. Qb8+ {[%clk 0:00:39.3]} 39... Kg7 {[%clk 0:01:17.6]} 40. Qb7+
{[%clk 0:00:39.3]} 40... Kg8 {[%clk 0:01:17.9]} 41. Qc8+ {[%clk 0:00:39.5]}
1/2-1/2

[Event "Early-Titled-Tuesday-Blitz-April-16-2024"]
[Site "Chess.com"]
[Date "2024.04.16"]
[Round "1"]
[White "Navyblue1"]
[Black "karinachess1"]
[Result "0-1"]
[WhiteElo "2279"]
[BlackElo "2608"]
[TimeControl "180+1"]
[EndTime "8:05:44 PDT"]
[Termination "karinachess1 won on time"]

1. d4 {[%clk 0:02:54.1]} 1... Nf6 {[%clk 0:02:59.8]} 2. c4 {[%clk 0:02:48.8]}
2... e6 {[%clk 0:02:59.9]} 3. Nf3 {[%clk 0:02:46.2]} 3... d5 {[%clk 0:02:58.8]}
4. Nc3 {[%clk 0:02:46.1]} 4... Bb4 {[%clk 0:02:57.7]} 5. Bd2 {[%clk 0:02:42]}
5... O-O {[%clk 0:02:56.8]} 6. e3 {[%clk 0:02:39.4]} 6... c5 {[%clk 0:02:56.4]}
7. cxd5 {[%clk 0:02:37.9]} 7... exd5 {[%clk 0:02:57.3]} 8. dxc5 {[%clk
0:02:30.5]} 8... Bxc5 {[%clk 0:02:50.2]} 9. Be2 {[%clk 0:02:26.1]} 9... Nc6
{[%clk 0:02:50.1]} 10. O-O {[%clk 0:02:23.2]} 10... Bg4 {[%clk 0:02:49.3]} 11.
Rc1 {[%clk 0:02:11.7]} 11... a6 {[%clk 0:02:40.9]} 12. h3 {[%clk 0:01:51]} 12...
Bh5 {[%clk 0:02:34]} 13. Na4 {[%clk 0:00:57.1]} 13... Bd6 {[%clk 0:02:18.2]} 14.
Nc5 {[%clk 0:00:43.4]} 14... Qb6 {[%clk 0:02:02.5]} 15. Na4 {[%clk 0:00:19.8]}
15... Qc7 {[%clk 0:02:02]} 16. Be1 {[%clk 0:00:12.8]} 16... Rac8 {[%clk
0:01:47.7]} 17. Nc3 {[%clk 0:00:07.6]} 17... Rfd8 {[%clk 0:01:46.9]} 18. Qb3
{[%clk 0:00:05.9]} 18... Qe7 {[%clk 0:01:41.6]} 19. Bd2 {[%clk 0:00:02.6]} 19...
b5 {[%clk 0:01:16.3]} 20. Rfd1 {[%clk 0:00:01.7]} 20... Na5 {[%clk 0:01:10.1]}
0-1